bitfinex-derivatives/quotes_ETHF0:USTF0_20240913
["timestamp","ask_amount","ask_price","bid_price","bid_amount"]
[1726249270641,0.4051,2415.7,2415.6,0.41387]
[1726249270843,0.4051,2415.7,2415.5,0.80218]
[1726249271452,0.4051,2415.7,2415.4,3.23]
[1726249271654,0.41387,2415.6,2415.3,3.2078]
[1726249271854,0.41387,2415.6,2415.4,0.4139]
[1726249272451,0.81896,2415.7,2415.4,0.4139]
[1726249272647,0.81896,2415.7,2415.5,0.41388]
[1726249272854,0.4051,2415.7,2415.6,0.41387]
[1726249273155,0.3996,2415.8,2415.7,0.41385]
[1726249273356,0.3996,2415.8,2415.6,0.41386]
[1726249273357,0.81343,2415.8,2415.6,0.41386]
[1726249273549,0.81343,2415.8,2415.6,0.78666]
[1726249275148,0.41383,2415.9,2415.7,3.23]
[1726249275352,0.41383,2415.8,2415.7,3.64384]
[1726249275756,0.41385,2415.7,2415.6,0.78667]
[1726249276059,0.41383,2415.9,2415.7,0.41384]
[1726249276257,0.4024,2416.0,2415.7,0.41384]
[1726249276258,0.41383,2415.8,2415.7,0.41384]
[1726249276561,0.41383,2415.9,2415.7,0.41384]
[1726249276954,0.81621,2416.0,2415.8,0.41383]
[1726249277261,0.81621,2416.0,2415.9,0.41382]
[1726249277458,0.4024,2416.0,2415.9,0.41382]
[1726249277757,0.8162,2416.0,2415.9,0.41382]
[1726249278167,4.5416,2416.0,2415.6,0.3728]
[1726249278459,0.4024,2416.0,2415.6,0.3728]
[1726249278648,0.41384,2415.8,2415.6,0.78666]
[1726249279565,1.43691,2416.0,2415.6,0.3728]
[1726249279566,0.41385,2415.7,2415.6,0.3728]
[1726249279859,0.3898,2415.7,2415.6,0.78667]
[1726249280263,0.41384,2415.8,2415.7,0.41385]
[1726249280859,0.41384,2415.8,2415.6,3.6028]
[1726249280860,0.41383,2415.9,2415.8,0.41383]
[1726249281064,0.41383,2415.9,2415.6,3.6028]
[1726249281065,0.4024,2416.0,2415.7,0.41384]
[1726249281258,0.41383,2415.9,2415.7,0.41384]
[1726249281464,0.41383,2415.8,2415.7,0.41384]
[1726249281861,0.41382,2415.9,2415.6,3.6028]
[1726249282063,0.41382,2415.9,2415.8,0.41383]
[1726249282261,0.41382,2415.9,2415.7,0.80494]
[1726249282570,0.41383,2415.8,2415.7,0.80494]
[1726249282866,0.41385,2415.7,2415.6,0.78666]
[1726249283166,0.4068,2415.7,2415.6,0.41386]
[1726249283353,0.4068,2415.7,2415.6,0.81516]
[1726249283863,0.81621,2416.0,2415.8,0.41383]
[1726249284051,0.41382,2415.9,2415.8,0.41383]
[1726249284252,0.81622,2416.0,2415.9,0.41382]
[1726249284861,0.81621,2416.0,2415.9,0.41382]
[1726249285165,0.8162,2416.0,2415.9,0.41382]
[1726249285667,0.4024,2416.0,2415.9,0.41382]
[1726249286370,0.8162,2416.0,2415.9,0.41382]
[1726249286678,0.8162,2416.0,2415.6,4.66596]
[1726249286679,0.41385,2415.7,2415.6,0.81516]
[1726249287864,0.41385,2415.7,2415.6,0.4013]
[1726249288257,0.81235,2415.7,2415.6,0.4013]
[1726249288457,0.41387,2415.6,2415.5,0.41387]
[1726249288654,0.80937,2415.6,2415.5,0.41387]
[1726249289065,1.05792465,2415.6,2415.5,0.41387]
[1726249289263,0.64405465,2415.6,2415.4,4.0113]
[1726249289462,1.05793465,2415.6,2415.5,0.41388]
[1726249291162,0.41388,2415.5,2415.4,0.7813]
[1726249291464,1.67874465,2415.6,2415.2,3.6167]
[1726249291665,1.67874465,2415.6,2415.3,0.41391]
[1726249291865,1.67874465,2415.6,2415.2,3.2078]
[1726249291866,0.41392,2415.3,2415.2,3.2078]
[1726249292165,0.41399,2414.9,2414.8,3.2078]
[1726249292365,0.41398,2415.0,2414.8,3.6218]
[1726249292569,1.44306,2415.2,2414.8,3.2078]
[1726249292758,0.41398,2415.0,2414.8,0.41399]
[1726249292961,0.24855465,2414.9,2414.8,0.41399]
[1726249293159,0.24855465,2414.9,2414.8,3.64399]
[1726249296862,0.66254465,2414.9,2414.8,3.23]
[1726249297069,0.66254465,2414.9,2414.8,3.644]
[1726249297565,0.66254465,2414.9,2414.8,3.23]
[1726249298085,0.66254465,2414.9,2414.8,3.644]
[1726249298875,0.41402,2414.8,2414.7,0.41402]
[1726249299066,0.41402,2414.7,2414.6,0.409]
[1726249299369,1.16542,2414.7,2414.6,0.409]
[1726249299873,1.16542,2414.7,2414.6,0.82304]
[1726249300072,1.41397465,2414.7,2414.6,0.82304]
[1726249301183,0.61935465,2414.7,2414.6,0.82304]
[1726249301485,1.03337465,2414.7,2414.6,0.82304]
[1726249302475,0.66257465,2414.7,2414.6,4.05304]
[1726249303683,0.24855465,2414.7,2414.6,4.05304]
[1726249304476,0.66257465,2414.7,2414.6,4.05304]
[1726249304670,0.66257465,2414.7,2414.3,3.2078]
[1726249304872,0.41407,2414.4,2414.3,0.4059]
[1726249305070,0.24855465,2414.4,2414.0,7.2168]
[1726249305275,0.8153,2414.3,2414.2,0.4141]
[1726249305470,0.4012,2414.3,2414.2,0.4141]
[1726249305778,0.81529,2414.3,2414.2,0.4141]
[1726249305975,0.41411,2414.2,2414.1,0.82001]
[1726249306173,0.66266465,2414.2,2414.1,0.82001]
[1726249306778,0.66266465,2414.2,2414.1,0.4059]
[1726249307673,0.66266465,2414.2,2414.1,0.82002]
[1726249307979,0.24855465,2414.2,2414.1,0.82002]
[1726249309275,0.24855465,2414.2,2414.1,4.96242]
[1726249309472,0.24855465,2414.2,2414.1,13.03306]
[1726249309972,3.3048,2414.8,2414.7,0.41402]
[1726249310177,3.6218,2414.8,2414.7,0.41402]
[1726249310372,0.41402,2414.7,2414.6,0.41403]
[1726249310577,0.41404,2414.6,2414.5,0.79484]
[1726249310774,0.41403,2414.7,2414.6,0.41404]
[1726249311176,0.41404,2414.6,2414.5,0.79485]
[1726249313078,4.63102,2414.8,2414.6,0.41404]
[1726249313079,0.41403,2414.7,2414.6,0.41404]
[1726249313277,3.2078,2414.8,2414.7,0.41402]
[1726249315181,3.6218,2414.8,2414.7,0.41402]
[1726249315780,0.41404,2414.6,2414.5,0.4016]
[1726249315977,0.41404,2414.6,2414.5,0.41406]
[1726249316179,0.41406,2414.5,2414.4,3.23]
[1726249316384,0.3776,2414.5,2414.4,3.64407]
[1726249317886,1.43517,2414.7,2414.4,3.23]
[1726249317887,0.81413,2414.7,2414.4,3.23]
[1726249318080,0.81413,2414.7,2414.6,0.41404]
[1726249318379,3.2078,2414.8,2414.7,0.41402]
[1726249318682,3.6218,2414.8,2414.7,0.41402]
[1726249319288,3.6218,2414.8,2414.6,3.23]
[1726249319483,3.6218,2414.8,2414.7,0.41402]
[1726249320078,3.6218,2414.8,2414.7,0.80342]
[1726249320586,3.2078,2414.8,2414.7,0.80342]
[1726249321486,3.6218,2414.8,2414.7,0.80342]
[1726249324384,3.2078,2414.8,2414.5,0.41404]
[1726249324687,0.41404,2414.6,2414.5,0.41404]
[1726249324886,0.79523,2414.7,2414.6,0.41404]
[1726249325093,0.3812,2414.7,2414.6,0.41404]
[1726249325882,0.79522,2414.7,2414.6,0.41404]
[1726249327288,0.3812,2414.7,2414.6,0.41404]
[1726249328495,0.79522,2414.7,2414.6,0.41404]
[1726249329990,0.41406,2414.6,2414.5,0.41405]
[1726249330190,0.41406,2414.5,2414.4,3.64406]
[1726249330382,1.20706,2414.5,2414.4,3.64406]
[1726249331197,1.20706,2414.5,2414.4,0.41406]
[1726249332091,0.793,2414.5,2414.4,0.41406]
[1726249333097,0.4049,2414.5,2414.4,0.41406]
[1726249333594,0.81896,2414.5,2414.4,0.41406]
[1726249333791,0.4049,2414.5,2414.4,0.41406]
[1726249334191,0.81896,2414.5,2414.4,0.41406]
[1726249334496,1.89948013,2414.5,2414.4,0.41406]
[1726249334791,0.4049,2414.5,2414.4,0.41406]
[1726249334987,1.49456013,2414.6,2414.5,0.41406]
[1726249335290,2.40779331,2414.7,2414.4,5.34324153]
[1726249335291,1.83992013,2414.7,2414.4,5.34324153]
[1726249335589,1.17343,2414.7,2414.6,0.41404]
[1726249335993,1.84329435,2414.7,2414.6,0.41404]
[1726249336490,0.7594,2414.7,2414.6,0.41404]
[1726249336791,0.7594,2414.7,2414.6,0.8480042]
[1726249337494,0.7594,2414.7,2414.6,0.41404]
[1726249337495,1.46550813,2414.7,2414.6,0.41404]
[1726249338795,1.46550813,2414.7,2414.6,0.84795082]
[1726249338998,1.46550813,2414.7,2414.6,0.41404]
[1726249339894,1.08430813,2414.7,2414.6,7.88694]
[1726249340091,1.08430813,2414.8,2414.7,0.41402]
[1726249340289,2.82428331,2414.9,2414.8,0.414]
[1726249340599,0.41402,2414.7,2414.6,7.92989153]
[1726249340788,1.49893689,2414.7,2414.6,3.62183]
[1726249340987,0.41404,2414.6,2414.5,1.07806153]
[1726249341193,1.8815869,2414.6,2414.5,0.41406]
[1726249341389,2.00429331,2414.6,2414.5,0.41406]
[1726249341593,1.88168848,2414.6,2414.4,1.07806153]
[1726249341794,1.85120418,2414.5,2414.4,0.41407]
[1726249342088,2.26526418,2414.5,2414.4,0.8480646]
[1726249342491,1.85120418,2414.5,2414.4,0.8480646]
[1726249343095,2.26526418,2414.5,2414.4,0.8480646]
[1726249343496,1.85120418,2414.5,2414.4,0.8480646]
[1726249343699,2.26526418,2414.5,2414.4,0.8480646]
[1726249343895,1.18016,2414.5,2414.4,0.8480646]
[1726249344093,1.85138779,2414.5,2414.4,1.92612613]
[1726249344296,2.00429331,2414.6,2414.5,0.41406]
[1726249344297,1.46788779,2414.6,2414.5,0.41406]
[1726249344495,2.03572331,2414.7,2414.6,0.41404]
[1726249345203,0.41404,2414.6,2414.5,0.41405]
[1726249345396,1.62169331,2414.7,2414.6,0.41404]
[1726249345602,1.62169331,2414.7,2414.6,5.11318458]
[1726249345909,2.01489331,2414.8,2414.7,0.41402]
[1726249346203,2.01489331,2414.8,2414.7,0.84802642]
[1726249346401,2.01489331,2414.8,2414.7,0.41402]
[1726249346596,2.01489331,2414.8,2414.7,0.84803585]
[1726249346798,2.01489331,2414.8,2414.7,0.41402]
[1726249347304,0.8072,2414.8,2414.7,0.41402]
[1726249347501,2.43516779,2414.8,2414.7,0.41402]
[1726249347810,0.8072,2414.8,2414.7,0.41402]
[1726249348497,0.3932,2414.8,2414.7,0.41402]
[1726249349396,1.62797749,2414.9,2414.8,0.414]
[1726249349602,2.17284663,2415.1,2414.8,4.26502]
[1726249349800,1.08513156,2414.9,2414.8,2.52708153]
[1726249349998,1.62785208,2415.0,2414.8,2.52708153]
[1726249349999,1.08513156,2415.0,2414.9,0.41399]
[1726249350194,1.08513156,2415.1,2415.0,0.41397]
[1726249350395,1.08513156,2415.2,2415.1,0.41395]
[1726249350696,1.08513156,2415.3,2415.2,0.41394]
[1726249350998,1.08513156,2415.3,2415.2,7.78394]
[1726249351308,1.08513156,2415.3,2415.2,4.55394]
[1726249352205,1.08513156,2415.3,2415.2,0.41394]
[1726249352396,2.00835208,2415.3,2415.2,0.41394]
[1726249352796,0.3805,2415.3,2415.2,0.41394]
[1726249353102,1.62615885,2415.4,2415.3,0.41392]
[1726249353304,3.36984663,2415.5,2415.3,0.41392]
[1726249353608,1.62597286,2415.4,2415.3,0.41392]
[1726249355326,1.08379765,2415.4,2415.3,0.41392]
[1726249355899,1.08379765,2415.4,2415.3,6.62352]
[1726249356102,1.08379765,2415.6,2415.4,1.03476]
[1726249356306,1.08379765,2415.6,2415.5,6.85168]
[1726249356506,1.87409765,2415.7,2415.6,0.41387]
[1726249357511,0.7903,2415.7,2415.6,0.41387]
[1726249357710,1.87409765,2415.7,2415.6,0.41387]
[1726249358509,0.7903,2415.7,2415.5,6.4378]
[1726249358709,1.87409765,2415.7,2415.3,3.23]
[1726249358909,2.28794765,2415.7,2415.4,0.4139]
[1726249359108,2.28794765,2415.7,2415.3,3.23]
[1726249359613,1.87409765,2415.7,2415.6,0.41387]
[1726249359812,0.7903,2415.7,2415.6,3.64387]
[1726249360116,0.3969,2415.8,2415.7,0.41385]
[1726249360311,0.3969,2415.8,2415.7,4.02925]
[1726249360610,0.3969,2415.8,2415.7,4.40495]
[1726249361611,0.786,2415.9,2415.8,0.41383]
[1726249364320,1.19982,2415.9,2415.8,0.41383]
[1726249365017,0.786,2415.9,2415.8,0.41383]
[1726249365406,14.133,2415.9,2415.3,0.766]
[1726249365617,0.41389,2415.5,2415.1,3.5899]
[1726249365917,1.1391,2415.4,2415.3,0.41391]
[1726249366817,1.1391,2415.4,2415.2,3.64393]
[1726249366818,1.553,2415.4,2415.2,3.64393]
[1726249367018,1.1391,2415.4,2415.3,0.41392]
[1726249367409,1.553,2415.4,2415.2,3.64393]
[1726249367817,1.1391,2415.4,2415.3,0.41392]
[1726249369610,0.7605,2415.4,2415.3,0.41392]
[1726249369819,0.41386,2415.7,2415.3,4.9318]
[1726249370118,0.41387,2415.7,2415.5,0.41387]
[1726249370312,0.41387,2415.6,2415.5,0.41387]
[1726249370517,0.41386,2415.7,2415.5,0.41387]
[1726249370828,2.20881,2415.8,2415.4,3.2078]
[1726249371116,0.41388,2415.5,2415.4,3.6217]
[1726249371316,0.41387,2415.6,2415.4,0.4139]
[1726249371620,6.50040765,2415.8,2415.4,0.4139]
[1726249371923,0.41388,2415.6,2415.4,0.4139]
[1726249372719,0.41388,2415.5,2415.4,0.4139]
[1726249373521,0.41388,2415.6,2415.4,0.4139]
[1726249373720,0.41388,2415.6,2415.5,0.41388]
[1726249374112,0.4139,2415.5,2415.4,0.41389]
[1726249376722,0.41389,2415.5,2415.4,0.41389]
[1726249377218,0.41388,2415.6,2415.5,0.41388]
[1726249378116,1.03464,2415.7,2415.6,0.41387]
[1726249378117,0.41387,2415.7,2415.6,0.41387]
[1726249378318,0.41387,2415.6,2415.5,0.41387]
[1726249380928,0.4139,2415.5,2415.4,0.41389]
[1726249381621,0.41388,2415.6,2415.5,0.41387]
[1726249381820,0.41386,2415.7,2415.6,0.41386]
[1726249382727,0.41387,2415.6,2415.5,1.19377]
[1726249384323,1.1742,2415.8,2415.5,0.7799]
[1726249384529,0.41386,2415.7,2415.6,3.64385]
[1726249384935,0.41386,2415.7,2415.6,3.64387]
[1726249385728,0.41386,2415.7,2415.6,3.23]
[1726249386726,0.41386,2415.7,2415.6,3.64387]
[1726249386930,0.41386,2415.7,2415.6,3.23]
[1726249387529,0.41386,2415.7,2415.6,3.64387]
[1726249387725,0.7626,2415.8,2415.6,3.23]
[1726249388026,1.08379765,2415.9,2415.8,0.41383]
[1726249388232,0.7779,2416.0,2415.9,0.41382]
[1726249388628,0.7779,2416.0,2415.9,3.62162]
[1726249388821,1.08379765,2416.1,2416.0,0.4138]
[1726249389027,1.08379765,2416.4,2416.1,2.06892]
[1726249389223,1.46239765,2416.5,2416.4,0.41373]
[1726249389423,0.4043,2416.6,2416.5,0.41371]
[1726249389424,1.08379765,2416.6,2416.5,0.41371]
[1726249389631,1.08379765,2416.6,2416.5,0.78511]
[1726249390025,2.58274663,2416.7,2416.6,0.4137]
[1726249390223,1.62244625,2416.7,2416.6,0.4137]
[1726249390528,1.62244625,2416.8,2416.6,13.3676]
[1726249390732,0.097,2417.1,2417.0,0.41363]
[1726249391030,0.41354,2417.6,2417.0,6.4378]
[1726249391238,0.4043,2417.5,2417.1,0.785]
[1726249391421,0.4043,2417.5,2417.1,0.3714]
[1726249391422,0.8142,2417.5,2417.1,0.3714]
[1726249391635,0.80447,2417.4,2417.1,0.3714]
[1726249391831,0.41358,2417.3,2417.1,0.3714]
[1726249392132,0.41358,2417.3,2417.0,6.4378]
[1726249392133,0.3909,2417.4,2417.0,6.4378]
[1726249392526,0.80446,2417.4,2417.0,6.85142]
[1726249392829,0.80446,2417.4,2417.1,0.41361]
[1726249392830,0.3909,2417.4,2417.1,0.41361]
[1726249393026,0.3909,2417.4,2417.0,3.23]
[1726249393254,0.3909,2417.4,2416.9,3.23]
[1726249393536,0.3909,2417.4,2417.0,3.62142]
[1726249393537,0.80447,2417.4,2417.0,3.62142]
[1726249394326,0.41358,2417.3,2417.0,3.2078]
[1726249394524,0.3909,2417.4,2417.0,3.2078]
[1726249394732,0.4136,2417.2,2417.0,3.2078]
[1726249394925,0.3915,2417.1,2416.9,3.64364]
[1726249395620,0.80512,2417.1,2416.9,3.23]
[1726249395825,0.7982,2417.1,2416.9,3.64364]
[1726249396230,0.7982,2417.1,2417.0,0.41363]
[1726249396431,0.3915,2417.1,2417.0,0.41363]
[1726249397033,0.3915,2417.1,2416.9,3.64363]
[1726249397426,0.3915,2417.1,2417.0,3.62143]
[1726249398343,0.3915,2417.1,2417.0,3.2078]
[1726249399344,0.80511,2417.1,2417.0,3.2078]
[1726249399655,0.3915,2417.1,2417.0,3.62143]
[1726249400539,0.80511,2417.1,2417.0,3.62143]
[1726249400940,0.80511,2417.1,2416.8,0.41366]
[1726249400941,0.41364,2416.9,2416.8,0.41366]
[1726249401139,0.41364,2416.9,2416.3,3.2078]
[1726249401140,1.03412,2416.9,2416.3,3.2078]
[1726249401341,1.03412,2416.9,2416.5,0.41371]
[1726249401342,0.7737,2416.8,2416.5,0.41371]
[1726249401657,0.097,2417.3,2416.5,0.41371]
[1726249401658,0.00681688,2418.2,2417.0,3.2078]
[1726249401840,2.17284663,2418.7,2418.5,0.41336]
[1726249402058,3.59718742,2419.4,2417.2,3.23]
[1726249402059,2.17284663,2419.1,2418.7,3.23]
[1726249402345,2.71530026,2419.3,2418.6,3.2078]
[1726249402346,2.8692,2418.8,2418.6,3.2078]
[1726249402552,2.8692,2418.7,2418.5,3.2078]
[1726249402746,2.8692,2418.6,2418.5,3.2078]
[1726249405844,7.3422,2418.6,2417.8,3.62129]
[1726249406052,7.3422,2418.6,2417.8,3.2078]
[1726249406053,0.41342,2418.3,2417.8,3.2078]
[1726249406346,0.7745,2418.2,2417.8,3.2078]
[1726249406549,0.4003,2418.1,2417.8,3.2078]
[1726249407346,0.4003,2418.1,2417.6,3.23]
[1726249407542,0.4003,2418.1,2417.7,0.4135]
[1726249407747,0.4003,2418.1,2417.6,3.23]
[1726249407949,0.096,2418.5,2418.0,3.23]
[1726249408150,1.03312,2419.3,2418.4,3.23]
[1726249408151,4.40742,2418.8,2418.4,3.23]
[1726249408455,1.19962,2418.8,2418.4,3.23]
[1726249408652,0.7863,2418.8,2418.4,3.23]
[1726249409051,0.7863,2418.8,2418.3,3.2078]
[1726249409052,0.41336,2418.6,2418.3,3.2078]
[1726249409247,4.40743,2418.8,2418.2,3.64341]
[1726249409556,0.41334,2418.7,2418.2,3.64341]
[1726249409854,3.9941,2418.8,2418.2,3.23]
[1726249410053,0.41334,2418.7,2418.2,6.4378]
[1726249410242,0.41334,2418.7,2418.2,6.85122]
[1726249410847,0.41334,2418.7,2418.2,6.4378]
[1726249411543,3.9941,2418.8,2418.2,6.4378]
[1726249411743,3.9941,2418.8,2418.2,3.62121]
[1726249411744,0.41334,2418.7,2418.2,3.62121]
[1726249411944,3.9941,2418.8,2418.2,3.2078]
[1726249412146,0.41338,2418.5,2418.2,3.2078]
[1726249412347,0.3827,2418.4,2418.2,3.2078]
[1726249413742,0.3827,2418.4,2418.3,0.41341]
[1726249413951,0.3827,2418.4,2418.2,0.41341]
[1726249414258,0.3827,2418.4,2418.1,3.64343]
[1726249414550,0.3827,2418.4,2418.1,3.64342]
[1726249414855,0.3827,2418.4,2418.2,0.41342]
[1726249415751,0.3827,2418.4,2418.1,3.64343]
[1726249415948,0.79609,2418.4,2418.1,3.23]
[1726249416253,0.3724,2418.3,2418.1,3.64343]
[1726249416448,0.3724,2418.3,2418.2,3.62122]
[1726249417559,0.3827,2418.4,2418.3,0.41341]
[1726249417754,0.41335,2418.7,2418.3,0.41341]
[1726249417755,0.78575,2418.7,2418.3,0.41341]
[1726249418057,0.7792,2418.7,2418.3,0.41341]
[1726249418247,0.41336,2418.6,2418.3,0.41341]
[1726249418446,0.41336,2418.6,2418.2,3.62121]
[1726249418646,0.41339,2418.5,2418.2,3.2078]
[1726249418854,0.41338,2418.5,2418.2,3.62121]
[1726249419256,0.41336,2418.6,2418.2,3.2078]
[1726249419457,0.41337,2418.6,2418.3,0.4134]
[1726249419758,0.41336,2418.6,2418.3,0.4134]
[1726249420751,3.2078,2418.8,2418.4,0.41338]
[1726249420949,0.41336,2418.6,2418.4,0.41338]
[1726249421354,0.41336,2418.6,2418.3,0.78879]
[1726249421752,0.41337,2418.5,2418.3,0.78879]
[1726249422556,0.41337,2418.5,2418.3,4.92399]
[1726249422757,0.41337,2418.6,2418.3,4.92399]
[1726249423063,0.41337,2418.6,2418.4,0.41338]
[1726249423253,0.41337,2418.5,2418.3,0.78879]
[1726249423665,0.41337,2418.5,2418.3,4.92399]
[1726249423963,0.41338,2418.5,2418.3,0.4134]
[1726249424159,0.3743,2418.4,2418.3,0.4134]
[1726249424362,0.78769,2418.4,2418.2,3.62121]
[1726249424557,0.7689,2418.4,2418.3,0.41341]
[1726249425264,1.18229,2418.4,2418.3,0.41341]
[1726249425453,1.18229,2418.4,2418.2,3.2078]
[1726249425860,0.41341,2418.3,2418.1,3.23]
[1726249426060,0.7689,2418.4,2418.3,0.41341]
[1726249427162,0.7689,2418.4,2418.1,6.4378]
[1726249427361,1.80239,2418.4,2418.1,3.2078]
[1726249427658,0.7689,2418.4,2418.3,0.41341]
[1726249427866,0.3743,2418.4,2418.3,3.64341]
[1726249428657,0.78769,2418.4,2418.2,0.41341]
[1726249428861,0.78769,2418.4,2418.1,3.2078]
[1726249428862,0.41341,2418.3,2418.1,0.41343]
[1726249429360,0.3743,2418.4,2418.0,3.64344]
[1726249429661,0.7586,2418.2,2418.1,0.41343]
[1726249430054,0.7586,2418.2,2418.1,3.62123]
[1726249430860,0.7586,2418.2,2418.1,0.41343]
[1726249431155,0.3743,2418.4,2418.2,0.41342]
[1726249431156,0.4134,2418.4,2418.2,0.41342]
[1726249431361,0.791,2418.4,2418.2,0.41342]
[1726249431754,0.791,2418.4,2418.2,0.41341]
[1726249431963,0.41341,2418.3,2418.0,6.4378]
[1726249432262,0.41341,2418.3,2418.1,0.41343]
[1726249432662,0.3776,2418.4,2418.0,6.85124]
[1726249432663,0.41343,2418.2,2418.0,6.85124]
[1726249432967,0.3776,2418.4,2417.8,3.23]
[1726249433264,0.3776,2418.4,2418.0,0.41344]
[1726249433265,0.3852,2418.1,2418.0,0.41344]
[1726249433467,0.3852,2418.1,2417.9,0.41346]
[1726249433765,0.41347,2417.9,2417.8,3.64348]
[1726249433965,0.4135,2417.8,2417.7,0.4135]
[1726249434172,0.3768,2417.8,2417.7,0.41351]
[1726249434562,0.3768,2417.8,2417.6,6.4378]
[1726249434876,0.3768,2417.8,2417.1,1.03402]
[1726249434877,0.41355,2417.5,2417.2,3.23]
[1726249435162,1.41813,2417.4,2417.1,3.62141]
[1726249435365,0.3768,2417.3,2417.0,0.41361]
[1726249435573,0.3768,2417.3,2416.8,3.23]
[1726249435574,1.41076,2417.3,2416.8,3.64365]
[1726249435774,0.41362,2417.1,2416.9,0.41364]
[1726249436068,4.61856,2417.3,2416.9,0.41364]
[1726249436069,0.41363,2417.0,2416.9,0.41364]
[1726249436255,1.03401,2417.2,2416.6,3.23]
[1726249436461,0.41365,2416.9,2416.7,0.41367]
[1726249436656,1.03405,2417.1,2416.6,3.64369]
[1726249436868,1.03408,2417.0,2416.6,3.64369]
[1726249437059,0.41368,2416.7,2416.5,3.6215]
[1726249437262,0.3713,2416.6,2416.5,0.41371]
[1726249437467,0.3713,2416.6,2416.5,3.64371]
[1726249439062,0.3842,2416.9,2416.5,3.64371]
[1726249439270,0.3842,2416.9,2416.4,3.2078]
[1726249439271,0.3713,2417.2,2416.8,3.64365]
[1726249439476,0.41363,2417.0,2416.8,3.64365]
[1726249439775,0.41364,2416.9,2416.8,3.23]
[1726249439965,1.0341,2417.0,2416.5,3.64371]
[1726249440164,0.41367,2416.8,2416.5,6.4378]
[1726249440362,1.79992,2417.2,2416.7,3.23]
[1726249440672,0.41366,2416.8,2416.7,3.23]
[1726249440972,1.03405,2417.1,2416.7,3.23]
[1726249441163,0.41366,2416.8,2416.7,3.23]
[1726249441778,1.03411,2417.0,2416.5,6.8515]
[1726249441974,0.3965,2416.7,2416.5,3.23]
[1726249442167,0.3965,2416.7,2416.5,6.4378]
[1726249442474,0.3795,2416.6,2416.5,6.85151]
[1726249442766,0.3965,2416.7,2416.5,6.4378]
[1726249442967,0.81012,2417.1,2416.6,4.1384]
[1726249443174,0.81012,2417.1,2416.8,6.85146]
[1726249443376,0.81012,2417.1,2416.8,3.64366]
[1726249443579,0.41363,2417.0,2416.8,3.64366]
[1726249444063,0.3965,2417.1,2416.8,3.23]
[1726249444265,0.81013,2417.1,2416.8,3.64366]
[1726249444465,0.3965,2417.1,2416.9,0.41364]
[1726249444673,0.81012,2417.1,2416.9,0.41364]
[1726249445565,0.79311,2417.2,2417.0,0.41363]
[1726249445766,0.7934,2417.3,2417.1,3.23]
[1726249446175,0.41359,2417.2,2417.1,3.23]
[1726249446871,1.20699,2417.3,2417.1,3.23]
[1726249447070,0.7934,2417.3,2417.1,3.64361]
[1726249447369,0.3841,2417.3,2417.1,3.23]
[1726249447570,0.3841,2417.3,2417.1,3.6436]
[1726249448271,0.79768,2417.3,2417.1,3.6436]
[1726249448467,0.79768,2417.3,2417.1,3.23]
[1726249448673,0.41359,2417.2,2417.1,3.23]
[1726249449377,0.3841,2417.3,2417.1,3.23]
[1726249449679,0.79769,2417.3,2417.1,3.23]
[1726249449878,0.41359,2417.2,2417.1,3.23]
[1726249450074,0.79768,2417.3,2417.1,3.6436]
[1726249450281,0.79769,2417.3,2417.1,3.6436]
[1726249450476,0.3841,2417.3,2417.1,3.23]
[1726249450677,0.79769,2417.3,2417.1,3.64361]
[1726249450873,0.3841,2417.3,2417.2,0.41359]
[1726249451075,0.41357,2417.4,2417.2,0.41359]
[1726249451278,0.41359,2417.3,2417.1,6.85141]
[1726249451674,0.3919,2417.4,2417.1,6.4378]
[1726249451978,0.41359,2417.2,2417.1,6.85141]
[1726249452281,0.41359,2417.2,2417.1,6.4378]
[1726249452474,0.41358,2417.3,2417.1,6.8514]
[1726249454373,0.41359,2417.2,2417.1,3.2078]
[1726249454686,0.41364,2417.0,2416.6,7.87784]
[1726249454886,0.41364,2417.0,2416.8,0.41365]
[1726249455078,0.41364,2417.0,2416.6,7.87784]
[1726249455079,0.41364,2417.0,2416.9,0.41364]
[1726249455392,0.41364,2417.0,2416.8,0.41365]
[1726249455684,1.03408,2417.0,2416.6,6.8515]
[1726249455880,1.03408,2417.0,2416.6,3.2078]
[1726249455881,0.41368,2416.7,2416.6,3.2078]
[1726249456671,0.80828,2416.7,2416.6,3.2078]
[1726249458482,5.98008,2416.7,2416.6,3.2078]
[1726249458983,0.41373,2416.4,2416.3,0.41374]
[1726249459672,0.41375,2416.3,2416.2,3.64376]
[1726249459974,0.41372,2416.5,2416.4,0.41373]
[1726249460169,0.41372,2416.5,2416.2,3.23]
[1726249460170,0.3867,2416.5,2416.3,3.62153]
[1726249460382,0.80042,2416.5,2416.4,0.41373]
[1726249461371,1.03427,2416.6,2416.5,0.4137]
[1726249461372,0.4137,2416.6,2416.5,0.4137]
[1726249461581,0.4137,2416.6,2416.4,4.02362]
[1726249462289,0.41371,2416.5,2416.4,4.02362]
[1726249462497,0.41371,2416.5,2416.4,3.6099]
[1726249462984,0.41371,2416.5,2416.4,3.23]
[1726249463574,0.41371,2416.6,2416.4,3.64373]
[1726249463785,1.42881,2416.7,2416.4,3.64373]
[1726249464183,0.41371,2416.6,2416.4,3.64373]
[1726249465089,0.3946,2416.7,2416.4,3.64373]
[1726249465283,0.41371,2416.6,2416.4,3.64373]
[1726249465484,0.41371,2416.5,2416.4,3.64373]
[1726249465792,0.4137,2416.6,2416.5,0.41371]
[1726249466982,0.4137,2416.6,2416.4,3.23]
[1726249467188,0.4137,2416.6,2416.5,0.41371]